Cogmind - Beta 15 @@@ ROGUE MODE // 2025.06.01 @ 13:49:05 Player: SUBSUB Result: Destroyed by 4C-502(R) with Subdweller Machine Gun Performance ------------- Evolutions (0) 0 Regions Visited (2) 400 Robots Destroyed (39) 195 Value Destroyed (815) 815 Prototype IDs (2) 40 Alien Tech Used (0) 0 Bonus (0) 0 TOTAL SCORE: 1450 Bonus ------- None Cogmind --------- Core Integrity 0/250 Matter 267/300 Energy 250/250 System Corruption 2% Temperature Cool (0) Movement Treading (250) Ox1 Location -10/Subcaves Parts ------- > --- POWER (1) -------- Ion Engine > --- PROPULSION (2) --- Light Treads Spiked Treads > --- UTILITY (2) ------ High-capacity Storage Unit Makeshift Light Armor Plating > --- WEAPON (2) ------- Makeshift Laser Battle Rifle > --- INVENTORY (20) --- Subdweller Power Source Light Treads Light Treads Spiked Treads Wheel Wheel Subdweller Monowheel Subdweller Optics Signal Interpreter Seismic Detector Tractor Beam Medium Laser Subdweller Beam Cannon Light Assault Rifle Subdweller Machine Gun Battle Cannon Mining Laser Flamer Hammer Peak State ------------ > --- POWER ------------ Ion Engine > --- PROPULSION ------- Light Treads Spiked Treads > --- UTILITY ---------- High-capacity Storage Unit Makeshift Light Armor Plating > --- WEAPON ----------- Makeshift Laser Battle Cannon > --- INVENTORY -------- Ion Engine Subdweller Power Source Light Treads Light Treads Spiked Treads Wheel Wheel Wheel Subdweller Monowheel Signal Interpreter Seismic Detector Tractor Beam Medium Laser Small Laser Subdweller Beam Cannon Light Assault Rifle Battle Rifle Mining Laser Flamer Hammer [Rating: 17] Favorites ----------- Power Ion Engine Engine Ion Engine Propulsion Wheel Treads Light Treads Wheel Wheel Utility High-capacity Storage Unit Device Seismic Detector Storage High-capacity Storage Unit Protection Makeshift Light Armor Plating Weapon Medium Laser Energy Gun Medium Laser Ballistic Gun Battle Rifle Ballistic Cannon Battle Cannon Special Weapon Mining Laser Impact Weapon Hammer Build | -11 -10 -10 ------- Run | Yrd Mat Sub Slots Evolved . | . . . Power . | . . . Propulsion . | . . . Utility . | . . . Weapon . | . . . Parts Attached 28 | 8 8 12 Power 3 | 1 1 1 Engine 3 | 1 1 1 Core . | . . . Reactor . | . . . Propulsion 13 | 3 5 5 Treads 5 | . 2 3 Leg . | . . . Wheel 8 | 3 3 2 Hover . | . . . Flight . | . . . Utility 4 | 2 1 1 Device 1 | 1 . . Storage 2 | 1 1 . Processor . | . . . Hackware . | . . . Protection 1 | . . 1 Artifact . | . . . Weapon 8 | 2 1 5 Energy Gun 3 | 2 . 1 Energy Cannon . | . . . Ballistic Gun 1 | . . 1 Ballistic Cannon 2 | . 1 1 Launcher . | . . . Special Weapon 1 | . . 1 Impact Weapon 1 | . . 1 Slashing Weapon . | . . . Piercing Weapon . | . . . Special Melee Weapon . | . . . Unidentified Prototypes . | . . . Parts Lost 4 | . 1 3 Power 2 | . 1 1 Propulsion 1 | . . 1 Utility . | . . . Weapon 1 | . . 1 Highest Loss Streak 1 | . 1 1 To Critical Strikes . | . . . Average Backups 14 | 2 7 19 Power 1 | . 1 1 Propulsion 6 | 2 4 7 Utility 2 | . . 3 Weapon 4 | . 1 7 Tool/Special . | . . . Unused Backups 14 | . . 14 Power 2 | . . 2 Propulsion 2 | . . 2 Utility 3 | . . 3 Weapon 7 | . . 7 Tool/Special . | . . . Average Slot Usage (%) 99 | . 98 99 Engine 13 | . 13 13 Treads 9 | . 9 9 Wheel 18 | . 18 18 Device 11 | . 13 10 Storage 14 | . 14 14 Protection 2 | . . 3 Energy Gun 14 | . 18 12 Ballistic Gun 1 | . . 2 Ballistic Cannon 10 | . 9 11 Peak Build Rating 17 | 7 8 17 Average Rating 10 | 5 7 13 On Entrance 5 | . 7 8 Naked Turns . | . . . Heaviest Build 54 | 13 51 54 Greatest Support 40 | 32 40 40 Greatest Overweight (x) 2 | 2 2 2 Average Overweight (x) 1 | . 1 1 Largest Inventory Capacity 20 | 8 20 20 Average Capacity 19 | 7 17 20 Most Carried 20 | 5 13 20 Average Carried 14 | 3 7 19 Final Capacity 20 | 8 20 20 Final Carried 19 | 5 13 19 Class Distribution -------------------- 87% | Mutant 12% | Derelict-Mutant Dominant Class ---------------- Mutant | -10/Materials Mutant | -10/Subcaves Resources | -11 -10 -10 ----------- Run | Yrd Mat Sub Matter Collected 1151 | 280 263 608 Remotely . | . . . Salvage Created 1288 | 124 754 410 Parts 70 | 7 43 20 Haulers Intercepted 2 | . 2 . Recyclers Shooed 4 | 1 3 . Parts Field Recycled . | . . . Retrieved Matter . | . . . Parts Self-Destructed 12 | . . 12 Prevented . | . . . Kills | -11 -10 -10 ------- Run | Yrd Mat Sub Combat Hostiles Destroyed 23 | . 12 11 Guns 13 | . 7 6 Cannons 8 | . 4 4 Classes Destroyed 10 | 2 6 2 Worker 4 | . 4 . Builder 2 | . 2 . Tunneler 2 | 2 . . Hauler 2 | . 2 . Recycler 4 | 1 3 . Watcher 2 | . 2 . Swarmer 6 | . 6 . Grunt 6 | . 6 . Cobbler 1 | . . 1 Subdweller 11 | . . 11 Best Kill Streak 4 | 2 4 2 Combat Bots Only 3 | . 3 2 Max Kills in Single Turn 2 | 1 2 1 Gunslinging . | . . . Exploded . | . . . Melee . | . . . Uniques/NPCs Destroyed . | . . . Combat | -11 -10 -10 -------- Run | Yrd Mat Sub Hostile Shots Fired 104 | . 53 51 Missed 26 | . 12 14 Hits 78 | . 41 37 Projectile 78 | . 41 37 Critical Strikes 2 | . . 2 Damage Taken 1246 | . 482 764 Core 265 | . 118 147 Absorbed by Shields . | . . . Regen/Repaired (Parts) 160 | . 160 . Core Remaining (%) 100 | 100 . . Volleys Fired 149 | 10 54 85 Largest 2 | 2 2 2 Hottest 133 | 100 100 133 Shots Fired 267 | 20 110 137 Gun 170 | 20 87 63 Cannon 60 | . 23 37 Launcher . | . . . Special 37 | . . 37 Kinetic 75 | . 23 52 Thermal 192 | 20 87 85 Explosive . | . . . Electromagnetic . | . . . Robot Hit Streak 47 | 5 12 47 Robot Miss Streak 3 | 2 3 1 Penetration Max . | . . . Secondary Targets 1 | . 1 . Max Gunslinging Chain 1 | . 1 . Shots Hit Robots 157 | 12 67 78 Core Hits 56 | 4 30 22 Critical Kills . | . . . Critical Parts Destroyed . | . . . Critical Strikes 8 | . 2 6 Burn 8 | . 2 6 Melee Attacks 17 | . . 17 Impact 17 | . . 17 Slashing . | . . . Piercing . | . . . Sneak Attacks . | . . . Combat Hostiles . | . . . Follow-up Attacks . | . . . Damage Inflicted 2586 | 149 1041 1396 Guns 1617 | 149 663 805 Cannons 883 | . 292 591 Explosions 85 | . 85 . Melee . | . . . Ramming 1 | . 1 . Kinetic 1040 | . 292 748 Thermal 1545 | 149 748 648 Explosive . | . . . Electromagnetic . | . . . Impact . | . . . Slashing . | . . . Piercing . | . . . Highest Corruption 2 | . 2 2 Average Corruption 2 | . 2 2 Corruption Purged . | . . . Corruption Blocked . | . . . Effects 55 | . 24 31 Message Errors 13 | . 7 6 Matter Fused 12 | . 5 7 Heat Flow Errors 5 | . 3 2 Energy Discharges 6 | . 2 4 Parts Fused 1 | . 1 . Data Loss (minor) 8 | . 3 5 Data Loss (major) 2 | . 1 1 Misfires 4 | . 2 2 Alerts 4 | . . 4 Overload Shots . | . . . Overflow Damage 71 | . 71 . Projectiles 11 | . 11 . Explosions 60 | . 60 . Melee . | . . . Knockbacks 16 | . 4 12 Impact . | . . . Kinetic 15 | . 3 12 Secondary 1 | . 1 . Self-Inflicted Damage . | . . . Shots . | . . . Rammed 1 | . 1 . Targets Rammed 1 | . 1 . Kicked . | . . . Crushed . | . . . Highest Temperature 273 | 273 252 172 Average Temperature 76 | 118 76 26 Received Heat Transfer 366 | . 222 144 Effects 1 | 1 . . Energy Bleed 1 | 1 . . Siege Activations . | . . . Martial Activations . | . . . Shielding Activations . | . . . Robots Disrupted . | . . . Combat Hostiles . | . . . Robots Corrupted . | . . . Combat Hostiles . | . . . Parts Fried . | . . . Impact Corruptions . | . . . Robots Melted 2 | . 1 1 Combat Hostiles 2 | . 1 1 Parts Melted 11 | . 8 3 Heat Transferred 4527 | 444 2159 1924 Parts Sabotaged . | . . . Parts Stolen . | . . . Parts Stripped . | . . . Power Chain Reactions . | . . . Alert | -11 -10 -10 ------- Run | Yrd Mat Sub Maximum Alert Level . | . . . Low Security (%) 100 | 100 100 . Level 1 . | . . . Level 2 . | . . . Level 3 . | . . . Level 4 . | . . . Level 5 . | . . . High Security . | . . . Max Security . | . . . Peak Influence 182 | 10 182 . Initial . | . . . Average 66 | 1 69 . Influence Increases 492 | 15 477 . Destroy 0b10 Robot/C 240 | . 240 . Destroy 0b10 Robot/NC 80 | 15 65 . Destroy Leader 58 | . 58 . Successful Hack 16 | . 16 . Disable Machine 15 | . 15 . Destroy Structure 23 | . 23 . Partial Spotted 15 | . 15 . Lose Combat Pursuer 45 | . 45 . Influence Decreases 492 | 15 470 7 Entered New Map 4 | . . 4 Time Decay 478 | 15 460 3 Lost Part 10 | . 10 . Squads Dispatched 2 | . 2 . Investigation 1 | . 1 . Extermination . | . . . Reinforcement 1 | . 1 . Assault . | . . . Garrison . | . . . Intercept . | . . . Searches Triggered . | . . . Construction Impeded . | . . . Haulers Reinforced . | . . . Active Scanning Responses . | . . . Cargo Convoy Interrupts . | . . . Stealth | -11 -10 -10 --------- Run | Yrd Mat Sub Distress Signals 1 | . 1 . Communications Jammed . | . . . Distress Signals . | . . . Times Spotted 36 | . 23 13 Peak Tracking Total 3 | . 3 2 Tactical Retreats 2 | . 2 . Traps | -11 -10 -10 ------- Run | Yrd Mat Sub Traps Triggered 3 | . 3 . Indirectly . | . . . Trap Hack Attempts . | . . . Triggered . | . . . Disarmed . | . . . Reprogrammed . | . . . Reused . | . . . Traps Extracted . | . . . Installed . | . . . Triggered . | . . . Machines | -11 -10 -10 ---------- Run | Yrd Mat Sub Machines Disabled 1 | . 1 . Max in Single Turn 1 | . 1 . Machines Repaired . | . . . Machines Dismantled . | . . . Machines Sabotaged . | . . . Overloaded Fab Kills . | . . . Hacking | -11 -10 -10 --------- Run | Yrd Mat Sub Machines Accessed 8 | . 8 . Terminals 6 | . 6 . Fabricators . | . . . Repair Stations 1 | . 1 . Recycling Units 1 | . 1 . Scanalyzers . | . . . Garrison Access . | . . . Total Hacks 28 | . 28 . Successful 18 | . 18 . Failed 10 | . 10 . Catastrophic 1 | . 1 . Database Lockouts . | . . . Manual 20 | . 20 . Terminals 19 | . 19 . Fabricators . | . . . Repair Stations 8 | . 8 . Recycling Units 1 | . 1 . Scanalyzers . | . . . Garrison Access . | . . . Terminal Hacks 4 | . 4 . Robot Analysis 3 | . 3 . Prototype ID Bank 1 | . 1 . Fabricator Hacks . | . . . Repair Station Hacks 8 | . 8 . Scan Component 4 | . 4 . Repair 4 | . 4 . Recycling Unit Hacks . | . . . Scanalyzer . | . . . Garrison Access Hacks . | . . . Unauthorized Hacks 6 | . 6 . Terminals 5 | . 5 . Botnet 5 | . 5 . Fabricators . | . . . Repair Stations . | . . . Recycling Units 1 | . 1 . Reject 1 | . 1 . Scanalyzers . | . . . Garrison Access . | . . . Data Cores Recovered . | . . . Used . | . . . Hacking Detections 8 | . 8 . Full Trace Events . | . . . Feedback Events . | . . . Feedback Blocked . | . . . Robot Schematics Acquired . | . . . Robots Built . | . . . Authchips . | . . . Time . | . . . Total Robot Build Rating . | . . . Part Schematics Acquired . | . . . Parts Built . | . . . Authchips . | . . . Time . | . . . Total Part Build Rating . | . . . Parts Repaired 4 | . 4 . Time 104 | . 104 . Parts Recycled . | . . . Recycled Matter . | . . . Retrieved Matter . | . . . Retrieved Components . | . . . Parts Scanalyzed . | . . . Part Schematics Acquired . | . . . Parts Damaged . | . . . Bothacking | -11 -10 -10 ------------ Run | Yrd Mat Sub Used RIF Installer . | . . . Robots Hacked . | . . . Non-combat . | . . . Combat . | . . . Robot Hacks Applied . | . . . Relay Couplers Released . | . . . Fabnet Peak Effective % . | . . . Robots Rewired . | . . . Allies Hacked . | . . . Hacks Repelled . | . . . Allies | -11 -10 -10 -------- Run | Yrd Mat Sub Total Allies . | . . . Largest Group . | . . . Highest-Rated Group . | . . . Highest-Rated Ally . | . . . Total Orders . | . . . Ally Attacks . | . . . Total Damage . | . . . Kills . | . . . Allies Corrupted . | . . . Allies Melted . | . . . Intel | -11 -10 -10 ------- Run | Yrd Mat Sub Active Infowar (turns) 3644 | 36 1565 2043 Seismic 3644 | 36 1565 2043 Robot Analysis Total 3 | . 3 . Derelict Logs Recovered . | . . . Drone Launches . | . . . Drone Recoveries . | . . . Exploration | -11 -10 -10 ------------- Run | Yrd Mat Sub Turns Passed 4412 | 92 1591 2729 Spaces Moved 2690 | 49 983 1658 Core 11 | 11 . . Treads 391 | . 133 258 Legs . | . . . Wheels 2288 | 38 850 1400 Hover . | . . . Flight . | . . . Fastest Speed 50 | 50 90 110 Average Speed 127 | 94 122 131 Slowest Speed 250 | 150 240 250 Overloaded Moves . | . . . Propulsion Burnouts . | . . . Robots Hopped . | . . . Potential Cave-ins . | . . . Cave-ins Triggered . | . . . Exploration Rate (%) 53 | 4 99 58 Regions Visited 2 Branch Regions 1 Pre-discovered Areas . | . . . Known Exits Taken . | . . . Unknown Exits Taken 2 | 1 1 . Scrap Searched 4 | . . 4 Spaces Dug 16 | . . 16 Terrain Destroyed 39 | . 22 17 Melee 1 | . . 1 Projectile 16 | . . 16 AOE 22 | . 22 . Terrain Rammed . | . . . Walls Destroyed . | . . . Machines Disabled . | . . . Actions | -11 -10 -10 --------- Run | Yrd Mat Sub Total 3281 | 70 1252 1959 Wait 322 | . 186 136 Move 2688 | 48 982 1658 Hop . | . . . Pick Up 30 | 4 8 18 Fast Attach 13 | 7 6 . Attach 4 | . . 4 Detach . | . . . Swap 43 | 1 12 30 Drop 14 | . 3 11 Fire 149 | 10 54 85 Melee 17 | . . 17 Ram . | . . . Kick . | . . . Crush 1 | . 1 . Escape Stasis . | . . . Rewire . | . . . Trap . | . . . Miscellaneous . | . . . Route ------- -11/Scrapyard -10/Materials (discovered 6 exits: [*Mat x3] / [*Min x2] / [*Sub]) -10/Subcaves (discovered 2 exits: [*Mat] / [*Scr]) History --------- Turn | Location | Event 7 | -11/Scrapyard | Discovered new exit (range 16) 93 | -11/Scrapyard | Entered Materials 205 | -10/Materials | Discovered new exit (range 15) 313 | -10/Materials | Build established: Mutant 743 | -10/Materials | Discovered new exit (range 13) 848 | -10/Materials | Discovered new exit (range 16) 1038 | -10/Materials | Repaired Lgt. Treads 1065 | -10/Materials | Repaired Seismic Detector 1093 | -10/Materials | Repaired Lgt. Cannon 1120 | -10/Materials | Repaired Med. Laser 1131 | -10/Materials | Discovered new exit (range 16) 1448 | -10/Materials | Discovered new exit (range 16) 1653 | -10/Materials | Discovered new exit (range 5) 1684 | -10/Materials | Entered Subcaves 1685 | -10/Subcaves | Approached by a straggling Scientist 1694 | -10/Subcaves | Shifting Twisted Machinery released Sub. Monowheel 1785 | -10/Subcaves | Scientist uncovered a shortcut to Scraptown 2029 | -10/Subcaves | Discovered new exit (range 10) 2786 | -10/Subcaves | Core integrity fell below 50% 3148 | -10/Subcaves | A swath of the cavern ceiling suddenly collapsed 3922 | -10/Subcaves | Core integrity fell below 20% 4413 | -10/Subcaves | Destroyed by 4C-502(R) with Subdweller Machine Gun Last Messages --------------- 03966_ Subatomizers dissect the Sub. Optics. 04004_ GJYNQV>JEHLNY0OLV7%NE> R:=JCY/ 04007_ Dropped Spk. Treads. 04013_ Acquired Sub. Optics. 04015_ Subatomizers dissect the Spk. Treads. 04058_ Z6-9QW(R) suffers critical hit (Burn). 04061_ Z6-9QW(R) destroyed. 04064_ Acquired 44 matter. 04113_ XV-8OG(R) destroyed. 04116_ Acquired 6 matter. 04218_ System corrupted: IFF burst signal emitted. 04246_ Ion Engine destroyed. 04252_ Disposable Heat Sink melted. 04252_ 1R-3E5(R) destroyed. 04260_ Subatomizers dissect the Sub. Monowheel. 04263_ Acquired 36 matter. 04270_ Subatomizers dissect the Sub. Monowheel. 04273_ System corrupted: Heat flow error (+207). 04384_ System corrupted: FCS attempts to trigger Battle Rifle. 04384_ System corrupted: Battle Rifle misfires. Map ----- +----------------------------------------------------+ | "????????????????????????????????????????????????? | | ???????????????????????????????????????????????? | | ?????????????????????????????????????????????????? | | ?????????????????????????????????????????????????? | | ?????????????????????????????????????????????????? | | ?????????????????????????????????????????????????? | | ?????????????????????????????????????????????????? | | ?????????????????????????????????????????????????? | | ??? "" ??????????????????????????????????????????? | | ?? "" ??????????????????????????????????????????? | | ?" " ???"######??????? ??????????????????????? | | #"""""???""" ##?????? R??????????????????????? | | # #????""" ###???? ??????????????????????? | | # #?????"" #???# R#?????????????????????? | | #??????#" #???# ?????????????????????? | | # ##?????# #??? ?????????????????????? | | ###???# #???? ?????????????????????? | | ##### #????? ??????????????????????? | | ## """ ## #??????? ??????????????????????? | | ##""" #??????? ??????????????????????? | | ##" ## ####???? #??????????????????????? | | ### #???? ##?????????????????????? | | #?## ###??# ###???????????????????? | | ## #??## ## #### ### ###????????????? | | ####### ##??## ## #????????????? | | ??????## ##??# @ ????????? | | ???????## #??## ######## ????????? | | ????????#####???# ##????????????????????????? | | ????????????????#### #?????????????????????????? | | ???????????????????#####?????????????????????????? | | ?????????????????????????????????????????????????? | | ?????????????????????????????????????????????????? | | ?????????????????????????????????????????????????? | | ?????????????????????????????????????????????????? | | ?????????????????????????????????????????????????? | | ?????????????????????????????????????????????????? | | ?????????????????????????????????????????????????? | | ?????????????????????????????????????????????????? | | ?????????????????????????????????????????????????? | | ?????????????????????????????????????????????????? | | ?????????????????????????????????????????????????? | | ?????????????????????????????????????????????????? | | ?????????????????????????????????????????????????? | | ?????????????????????????????????????????????????? | | ?????????????????????????????????????????????????? | | | | | | | | | | | +----------------------------------------------------+ Best States ------------- Heat Dissipation 25 Energy Generation 10 Energy Capacity 250 Matter Stores 300 Matter Capacity 300 Sight Range 16 Terrain Scan Density 10 Armor Coverage 100 Evasion (%) 42 Recoil Reduction 2 Item Schematics ----------------- None Robot Schematics ------------------ None Fabricated ------------ Nothing Repaired ---------- Lgt. Treads | 47% | -10/Materials Seismic Detector | 60% | -10/Materials Lgt. Cannon | 70% | -10/Materials Med. Laser | 37% | -10/Materials Alien Tech Used ----------------- None Achievements -------------- None Challenges ------------ None Game ------ Seed IntegrityClaymoresBeamcaster Manual? 0 Play Time 00:28:32 Cumulative 50.6 hours Start 2025.06.01 @ 13:22:47 End 2025.06.01 @ 13:49:05 Sessions 1 Manual Loads 0 Difficulty Rogue Special Mode None Game No. 65 Rogue 65 Adventurer 0 Explorer 0 Win Type - Total 0 Types 0/0/0/0/0/0/0/0/0/0 Lore% 47 Gallery% 31 Achievement% 32 Wizard Run 0 Options --------- Layout 0 ASCII 0 Keyboard 1 Movement Vi Keybinds 0 Fullscreen 1 Font 18/SmallcapsGlow Map View 76x50 Zoom Use 0% Tactical HUD 1 Map Filters NONE Filters NONE Steam 1 RUN: 701d6668-a45d-4cf4-b3c2-b7413a652367